Cogmind - Beta 14 @@@ ROGUE MODE // 2024.08.28 @ 13:05:29 Player: Minty Result: Destroyed by VP-NTK(j) with Overtuned Pulse Rifle Performance ------------- Evolutions (1) 500 Regions Visited (5) 1000 Robots Destroyed (115) 575 Value Destroyed (3083) 3083 Prototype IDs (16) 320 Alien Tech Used (0) 0 Bonus (855) 855 TOTAL SCORE: 6333 Bonus ------- High Alert Combat Kills 475 Follower Combat Kills 116 Registered with UFD 300 Friendly Fire -36 Cogmind --------- Core Integrity 0/400 Matter 248/300 Energy 91/100 System Corruption 0% Temperature Cool (88) Movement Rolling (115) Ox1 Location -9/Scraptown Parts ------- > --- POWER (1) -------- (None) > --- PROPULSION (2) --- Compact Wheel > --- UTILITY (2) ------ Large Storage Unit Core Shielding > --- WEAPON (4) ------- Improved Heavy Laser Mini Grenade Launcher Companion Sword > --- INVENTORY (15) --- MA-1KR's Cyclogen Improved Flight Unit Improved Flight Unit Heavy Machine Gun Plasma Cutter Vortex Trap Vortex Trap Vortex Trap Large Botcube Peak State ------------ > --- POWER ------------ Cooled Ion Engine > --- PROPULSION ------- Improved Flight Unit Improved Flight Unit > --- UTILITY ---------- Enhanced Optical Array Core Shielding > --- WEAPON ----------- Improved Medium Laser Thermic Laser Improved Heavy Laser Heavy Machine Gun > --- INVENTORY -------- Improved Flight Unit Improved Flight Unit Rocket Launcher Plasma Cutter [Rating: 35] Favorites ----------- Power Light Ion Engine Engine Light Ion Engine Propulsion Light Treads Treads Light Treads Leg Aluminum Leg Wheel Compact Wheel Flight Unit Improved Flight Unit Utility Small Storage Unit Device Shield Generator Storage Small Storage Unit Processor Enhanced Optical Array Protection Core Shielding Weapon Improved Assault Rifle Energy Gun Improved Medium Laser Energy Cannon Advanced Beam Cannon Ballistic Gun Improved Assault Rifle Launcher Rocket Launcher Special Weapon Plasma Cutter Slashing Weapon Companion Sword Special Melee Weapon Datajack Build | -11 -10 -9 -9 -9 -9 ------- Run | Yrd Mat Mat Sto Rec Scr Slots Evolved 2 | . . 2 . . . Power . | . . . . . . Propulsion . | . . . . . . Utility . | . . . . . . Weapon 2 | . . 2 . . . Parts Attached 99 | . 15 46 24 1 13 Power 5 | . 1 3 1 . . Engine 5 | . 1 3 1 . . Core . | . . . . . . Reactor . | . . . . . . Propulsion 21 | . 6 8 3 . 4 Treads 15 | . 6 7 1 . 1 Leg . | . . . . . . Wheel 3 | . . . . . 3 Hover . | . . . . . . Flight 3 | . . 1 2 . . Utility 14 | . 3 6 2 1 2 Device 3 | . . 3 . . . Storage 4 | . 1 1 1 . 1 Processor 3 | . 1 . . 1 1 Hackware . | . . . . . . Protection 4 | . 1 2 1 . . Artifact . | . . . . . . Weapon 59 | . 5 29 18 . 7 Energy Gun 12 | . 1 7 1 . 3 Energy Cannon 1 | . . 1 . . . Ballistic Gun 33 | . 2 18 12 . 1 Ballistic Cannon . | . . . . . . Launcher 7 | . . 3 2 . 2 Special Weapon 3 | . . . 3 . . Impact Weapon . | . . . . . . Slashing Weapon 1 | . . . . . 1 Piercing Weapon . | . . . . . . Special Melee Weapon 2 | . 2 . . . . Unidentified Prototypes 8 | . . 5 2 . 1 Parts Lost 13 | . 1 4 5 . 3 Power 2 | . 1 . . . 1 Propulsion 3 | . . . 2 . 1 Utility 3 | . . 2 1 . . Weapon 5 | . . 2 2 . 1 Highest Loss Streak 5 | . 1 2 5 . 3 To Critical Strikes . | . . . . . . Average Slot Usage (%) 96 | . 95 98 92 60 98 Engine 11 | . 13 11 11 11 10 Treads 18 | . 27 22 18 . . Wheel 2 | . . . . . 12 Flight 2 | . . . 2 22 8 Device 3 | . . 8 8 . . Storage 9 | . 14 11 9 . 1 Processor 3 | . 2 . . 5 9 Protection 5 | . 7 1 2 11 11 Energy Gun 9 | . . 8 13 . 23 Ballistic Gun 24 | . 27 34 22 . 7 Launcher 1 | . . . . . 6 Peak Build Rating 35 | . 12 25 28 15 35 Average Rating 18 | . 9 19 23 13 30 On Entrance 12 | 6 6 12 25 13 15 Naked Turns . | . . . . . . Heaviest Build 95 | 11 88 95 37 10 43 Greatest Support 40 | 20 40 40 40 10 32 Greatest Overweight (x) 4 | . 4 2 . . 2 Average Overweight (x) . | . 1 . . . . Largest Inventory Capacity 25 | . 25 25 10 5 15 Average Capacity 13 | . 22 8 8 5 6 Most Carried 25 | . 25 24 10 5 10 Average Carried 12 | . 22 8 8 5 5 Final Capacity 25 | 8 25 8 5 5 15 Final Carried 25 | 6 25 8 5 5 10 Class Distribution -------------------- 56% | Tank 37% | Mutant 4% | Scavenger-Tank Dominant Class ---------------- Mutant | -10/Materials Tank | -9/Materials Tank | -9/Storage Mutant | -9/Recycling Tank | -9/Scraptown Resources | -11 -10 -9 -9 -9 -9 ----------- Run | Yrd Mat Mat Sto Rec Scr Matter Collected 2997 | 200 721 1363 547 . 166 Remotely . | . . . . . . Salvage Created 3833 | . 726 2216 823 . 68 Parts 246 | . 62 135 44 . 5 Haulers Intercepted 10 | . 2 6 2 . . Recyclers Shooed . | . . . . . . Parts Field Recycled . | . . . . . . Retrieved Matter . | . . . . . . Parts Self-Destructed . | . . . . . . Prevented . | . . . . . . Kills | -11 -10 -9 -9 -9 -9 ------- Run | Yrd Mat Mat Sto Rec Scr Combat Hostiles Destroyed 79 | . 17 43 18 . 1 Guns 67 | . 17 37 13 . . AOE 12 | . . 6 5 . 1 Classes Destroyed 17 | . 6 7 1 . 3 Worker 6 | . 1 4 1 . . Builder 5 | . 1 3 1 . . Tunneler 1 | . . 1 . . . Hauler 10 | . 2 6 2 . . Recycler 2 | . . 1 1 . . Mechanic 2 | . . . 2 . . Operator 2 | . . 2 . . . Turret 1 | . . . . . 1 Watcher 7 | . 2 4 1 . . Swarmer 13 | . 6 3 4 . . Grunt 42 | . 11 24 7 . . Brawler 3 | . . 1 2 . . Duelist 9 | . . 5 4 . . Protector 2 | . . 2 . . . Sentry 9 | . . 8 1 . . Scrapper 1 | . . . . . 1 Tinkerer 1 | . . . . . 1 Best Kill Streak 22 | . 5 6 22 . 3 Combat Bots Only 16 | . 5 5 16 . 1 Max Kills in Single Turn 6 | . 2 2 6 . 1 Gunslinging 1 | . 1 1 1 . . Exploded 2 | . . 2 2 . 1 Melee . | . . . . . . Uniques/NPCs Destroyed . | . . . . . . Combat | -11 -10 -9 -9 -9 -9 -------- Run | Yrd Mat Mat Sto Rec Scr Hostile Shots Fired 386 | . 87 155 101 4 39 Missed 115 | . 28 42 33 2 10 Damage Taken 3551 | . 676 1299 1095 28 453 Core 518 | . 114 146 126 12 120 Absorbed by Shields 438 | . . 300 138 . . Redirected to Shielding 73 | . 38 . 9 3 23 Regen/Repaired (Parts) 55 | . . 55 . . . Core Remaining (%) 77 | 100 54 . . . . Volleys Fired 193 | . 65 97 27 . 4 Largest 4 | . 2 4 4 . 3 Hottest 167 | . 40 158 167 . 128 Shots Fired 603 | . 129 371 93 . 10 Gun 583 | . 129 365 85 . 4 Cannon . | . . . . . . Launcher 20 | . . 6 8 . 6 Special . | . . . . . . Kinetic 489 | . 129 291 69 . . Thermal 94 | . . 74 16 . 4 Explosive 20 | . . 6 8 . 6 Electromagnetic . | . . . . . . Robot Hit Streak 15 | . 12 15 8 . 2 Robot Miss Streak 6 | . 5 6 6 . 2 Penetration Max . | . . . . . . Secondary Targets 21 | . 5 12 4 . . Max Gunslinging Chain 2 | . 1 1 2 . . Shots Hit Robots 350 | . 74 218 50 . 8 Core Hits 208 | . 37 114 46 . 11 Critical Kills 1 | . . 1 . . . Critical Parts Destroyed 1 | . . 1 . . . Critical Strikes 6 | . . 4 2 . . Burn 4 | . . 2 2 . . Destroy 2 | . . 2 . . . Melee Attacks 6 | . . . . . 6 Impact . | . . . . . . Slashing 6 | . . . . . 6 Piercing . | . . . . . . Sneak Attacks . | . . . . . . Combat Hostiles . | . . . . . . Follow-up Attacks . | . . . . . . Damage Inflicted 7765 | . 1008 4290 1996 . 471 Guns 5265 | . 955 3506 804 . . Cannons . | . . . . . . Explosions 2269 | . . 775 1176 . 318 Melee 153 | . . . . . 153 Ramming 78 | . 53 9 16 . . Kinetic 4334 | . 955 2778 601 . . Thermal 931 | . . 728 203 . . Explosive 2269 | . . 775 1176 . 318 Electromagnetic . | . . . . . . Impact . | . . . . . . Slashing 153 | . . . . . 153 Piercing . | . . . . . . Highest Corruption 2 | . . 1 1 2 . Average Corruption 1 | . . 1 1 1 . Corruption Purged . | . . . . . . Corruption Blocked . | . . . . . . Effects 2 | . . . 1 1 . Matter Fused 1 | . . . . 1 . Data Loss (minor) 1 | . . . 1 . . Overload Shots . | . . . . . . Overflow Damage 50 | . . . 5 . 45 Projectiles . | . . . . . . Explosions 16 | . . . 5 . 11 Melee 34 | . . . . . 34 Knockbacks 2 | . 2 . . . . Impact 2 | . 2 . . . . Kinetic . | . . . . . . Secondary . | . . . . . . Self-Inflicted Damage 454 | . . 141 217 . 96 Shots 9 | . . 3 4 . 2 Rammed 9 | . 6 1 2 . . Targets Rammed 12 | . 7 3 2 . . Kicked . | . . . . . . Crushed 3 | . 1 2 . . . Highest Temperature 362 | . 8 362 180 . 138 Average Temperature 87 | . 2 95 61 . 69 Received Heat Transfer 1099 | . 270 442 173 9 205 Effects 2 | . . 2 . . . Energy Bleed 1 | . . 1 . . . Short Circuit 1 | . . 1 . . . Siege Activations . | . . . . . . Robots Corrupted . | . . . . . . Combat Hostiles . | . . . . . . Parts Fried . | . . . . . . Impact Corruptions . | . . . . . . Robots Melted . | . . . . . . Combat Hostiles . | . . . . . . Parts Melted 5 | . . 4 1 . . Heat Transferred 2212 | . . 1694 518 . . Parts Sabotaged . | . . . . . . Parts Stolen . | . . . . . . Parts Stripped . | . . . . . . Power Chain Reactions . | . . . . . . Alert | -11 -10 -9 -9 -9 -9 ------- Run | Yrd Mat Mat Sto Rec Scr Peak Influence 914 | . 239 809 914 363 . Initial 356 | . . 40 341 356 . Average 280 | . 104 366 574 362 . Maximum Alert Level 3 | . 1 3 3 1 . Low Security (%) 53 | . 86 36 . . . Level 1 19 | . 13 22 20 100 . Level 2 18 | . . 25 61 . . Level 3 8 | . . 14 18 . . Level 4 . | . . . . . . Level 5 . | . . . . . . High Security . | . . . . . . Max Security . | . . . . . . Squads Dispatched 17 | . 3 8 6 . . Investigation 6 | . 2 3 1 . . Extermination . | . . . . . . Reinforcement 6 | . 1 3 2 . . Assault 5 | . . 2 3 . . Garrison . | . . . . . . Intercept . | . . . . . . Searches Triggered . | . . . . . . Construction Impeded 2 | . . 1 1 . . Haulers Reinforced . | . . . . . . Active Scanning Responses . | . . . . . . Cargo Convoy Interrupts . | . . . . . . Stealth | -11 -10 -9 -9 -9 -9 --------- Run | Yrd Mat Mat Sto Rec Scr Distress Signals 10 | . 2 7 1 . . Communications Jammed . | . . . . . . Distress Signals . | . . . . . . Times Spotted 119 | . 29 57 28 1 4 Peak Tracking Total 8 | . 5 5 8 1 4 Tactical Retreats 3 | . . 2 1 . . Traps | -11 -10 -9 -9 -9 -9 ------- Run | Yrd Mat Mat Sto Rec Scr Traps Triggered 6 | . 4 1 1 . . Indirectly . | . . . . . . Trap Hack Attempts 6 | . 6 . . . . Triggered . | . . . . . . Disarmed 1 | . 1 . . . . Reprogrammed . | . . . . . . Reused . | . . . . . . Traps Extracted . | . . . . . . Installed . | . . . . . . Triggered . | . . . . . . Most Traps Carried 3 | . . . . . 3 Machines | -11 -10 -9 -9 -9 -9 ---------- Run | Yrd Mat Mat Sto Rec Scr Machines Disabled 15 | . 1 2 6 . 6 Max in Single Turn 3 | . 1 1 1 . 3 Garrison Access 1 | . . . 1 . . Machines Repaired . | . . . . . . Machines Dismantled 2 | . . . 2 . . Machines Sabotaged . | . . . . . . Overloaded Fab Kills . | . . . . . . Hacking | -11 -10 -9 -9 -9 -9 --------- Run | Yrd Mat Mat Sto Rec Scr Machines Accessed 25 | . 8 10 2 3 2 Terminals 16 | . 6 7 1 2 . Fabricators . | . . . . . . Repair Stations 2 | . . 2 . . . Recycling Units 4 | . 2 1 . 1 . Scanalyzers . | . . . . . . Garrison Access 1 | . . . 1 . . Total Hacks 86 | . 26 39 7 11 3 Successful 40 | . 12 20 1 4 3 Failed 46 | . 14 19 6 7 . Catastrophic 7 | . 3 2 2 . . Database Lockouts . | . . . . . . Manual 46 | . 18 27 1 . . Terminals 61 | . 21 30 4 6 . Fabricators . | . . . . . . Repair Stations 5 | . . 5 . . . Recycling Units 14 | . 5 4 . 5 . Scanalyzers . | . . . . . . Garrison Access 3 | . . . 3 . . Terminal Hacks 15 | . 2 8 . 2 3 Record 1 | . . . . . 1 Part Schematic 1 | . . . . 1 . Prototype ID Bank 1 | . . 1 . . . Open Door 1 | . . . . . 1 Branch Access Points 2 | . . 1 . 1 . Terminal Index 1 | . . 1 . . . Repair Station Index 1 | . . 1 . . . Alert Level 1 | . . 1 . . . Unreport Threat 1 | . . 1 . . . Locate Traps 4 | . 2 2 . . . Derelict Proto ID Bank 1 | . . . . . 1 Fabricator Hacks . | . . . . . . Repair Station Hacks 1 | . . 1 . . . Scan Component 1 | . . 1 . . . Recycling Unit Hacks 10 | . 4 4 . 2 . Process 2 | . 1 1 . . . Report Inventory 4 | . 2 1 . 1 . Retrieve Matter 3 | . 1 2 . . . Retrieve Components 1 | . . . . 1 . Scanalyzer . | . . . . . . Garrison Access Hacks 1 | . . . 1 . . Seal Access 1 | . . . 1 . . Unauthorized Hacks 13 | . 6 7 . . . Terminals 11 | . 5 6 . . . Botnet 2 | . 1 1 . . . Skim 9 | . 4 5 . . . Fabricators . | . . . . . . Repair Stations 1 | . . 1 . . . Patch 1 | . . 1 . . . Recycling Units 1 | . 1 . . . . Tunnel 1 | . 1 . . . . Scanalyzers . | . . . . . . Garrison Access . | . . . . . . Data Cores Recovered . | . . . . . . Used . | . . . . . . Hacking Detections 21 | . 6 9 3 3 . Full Trace Events 8 | . 2 2 1 3 . Feedback Events 1 | . . . . 1 . Corruption 1 | . . . . 1 . Feedback Blocked . | . . . . . . Robot Schematics Acquired . | . . . . . . Robots Built . | . . . . . . Authchips . | . . . . . . Time . | . . . . . . Total Robot Build Rating . | . . . . . . Part Schematics Acquired 1 | . . . . 1 . Parts Built . | . . . . . . Authchips . | . . . . . . Time . | . . . . . . Total Part Build Rating . | . . . . . . Parts Repaired . | . . . . . . Time . | . . . . . . Parts Recycled . | . . . . . . Recycled Matter 248 | . 247 1 . . . Retrieved Matter 460 | . 459 1 . . . Retrieved Components 2 | . . . . 2 . Parts Scanalyzed . | . . . . . . Part Schematics Acquired . | . . . . . . Parts Damaged . | . . . . . . Bothacking | -11 -10 -9 -9 -9 -9 ------------ Run | Yrd Mat Mat Sto Rec Scr Used RIF Installer . | . . . . . . Robots Hacked . | . . . . . . Non-combat . | . . . . . . Combat . | . . . . . . Robot Hacks Applied . | . . . . . . Relay Couplers Released . | . . . . . . Fabnet Peak Effective % . | . . . . . . Robots Rewired . | . . . . . . Allies Hacked . | . . . . . . Hacks Repelled . | . . . . . . Allies | -11 -10 -9 -9 -9 -9 -------- Run | Yrd Mat Mat Sto Rec Scr Total Allies 2 | . . . 2 . . Largest Group 2 | . . . 2 . . Highest-Rated Group 62 | . . . 62 . . Highest-Rated Ally 31 | . . . 31 . . Total Orders . | . . . . . . Ally Attacks 18 | . . . 18 . . Total Damage 229 | . . . 229 . . Kills 4 | . . . 4 . . Allies Corrupted . | . . . . . . Allies Melted . | . . . . . . Intel | -11 -10 -9 -9 -9 -9 ------- Run | Yrd Mat Mat Sto Rec Scr Robot Analysis Total . | . . . . . . Derelict Logs Recovered . | . . . . . . Drone Launches . | . . . . . . Drone Recoveries . | . . . . . . Exploration | -11 -10 -9 -9 -9 -9 ------------- Run | Yrd Mat Mat Sto Rec Scr Turns Passed 5321 | . 1826 1801 557 59 1078 Spaces Moved 2727 | 1 539 815 275 154 943 Core . | . . . . . . Treads 1533 | . 509 815 209 . . Legs 31 | 1 30 . . . . Wheels 833 | . . . . . 833 Hover . | . . . . . . Flight 330 | . . . 66 154 110 Fastest Speed 37 | 120 120 160 37 37 37 Average Speed 159 | 120 287 167 130 37 108 Slowest Speed 480 | 120 480 320 160 37 130 Overloaded Moves . | . . . . . . Propulsion Burnouts . | . . . . . . Robots Hopped 1 | . . . 1 . . Cave-ins Triggered . | . . . . . . Exploration Rate (%) 52 | 1 90 74 44 38 69 Regions Visited 5 Branch Regions 3 Pre-discovered Areas 2 | . 1 1 . . . Known Exits Taken 1 | . . 1 . . . Unknown Exits Taken 4 | 1 1 . 1 1 . Scrap Searched 5 | . . . . . 5 Spaces Dug . | . . . . . . Terrain Destroyed 173 | . . 53 96 . 24 Melee . | . . . . . . Projectile 4 | . . . 2 . 2 AOE 169 | . . 53 94 . 22 Terrain Rammed . | . . . . . . Walls Destroyed . | . . . . . . Machines Disabled . | . . . . . . Actions | -11 -10 -9 -9 -9 -9 --------- Run | Yrd Mat Mat Sto Rec Scr Total 3209 | . 672 1020 378 154 985 Wait 30 | . 5 16 5 . 4 Move 2720 | . 538 814 272 153 943 Hop 1 | . . . 1 . . Pick Up 41 | . 25 5 3 . 8 Fast Attach 22 | . 7 8 2 1 4 Attach 16 | . 3 4 8 . 1 Detach 10 | . 2 2 4 . 2 Swap 61 | . 5 34 14 . 8 Drop 61 | . 9 37 10 . 5 Fire 193 | . 65 97 27 . 4 Melee 6 | . . . . . 6 Ram . | . . . . . . Kick . | . . . . . . Crush 12 | . 7 3 2 . . Escape Stasis 14 | . . . 14 . . Rewire . | . . . . . . Trap 6 | . 6 . . . . Miscellaneous 16 | . . . 16 . . Route ------- -11/Scrapyard -10/Materials (discovered 4 exits: *Mat x3 / [*Min]) -9/Materials (discovered 5 exits: *Mat x3 / *Min / *Sto) -9/Storage (discovered 2 exits: Mat / *Rec) -9/Recycling -9/Scraptown History --------- Turn | Location | Event 1 | -11/Scrapyard | Discovered new exit (range 0) 1 | -11/Scrapyard | Entered Materials 192 | -10/Materials | Discovered new exit (range 14) 311 | -10/Materials | Build established: Mutant 924 | -10/Materials | Discovered new exit (range 7) 1184 | -10/Materials | Discovered new exit (range 9) 1422 | -10/Materials | Discovered new exit (range 12) 1827 | -10/Materials | Entered another Materials area 1827 | -9/Materials | Evolved 2 slots: Weapon x2 2293 | -9/Materials | Build established: Tank 2301 | -9/Materials | Discovered new exit (range 11) 2879 | -9/Materials | Discovered new exit (range 13) 3027 | -9/Materials | First assault squad dispatched 3031 | -9/Materials | Identified exit to Mines 3031 | -9/Materials | Identified exit to Storage 3317 | -9/Materials | Discovered new exit (range 16) 3321 | -9/Materials | Learned 4 Recycling zone layouts 3497 | -9/Materials | Learned Storage emergency access door positions 3536 | -9/Materials | Loaded intel: 2 repair station locations 3566 | -9/Materials | Identified exit to Materials 3616 | -9/Materials | Learned Storage emergency access door positions 3628 | -9/Materials | Entered Storage 3691 | -9/Storage | Met a pair of Derelict thieves 4028 | -9/Storage | First assault squad dispatched 4057 | -9/Storage | Core integrity fell below 50% 4126 | -9/Storage | Destroyed 16 combat bots 4144 | -9/Storage | Lost 5 parts (2n1u2w) 4184 | -9/Storage | Used back door to open Recycling access 4184 | -9/Storage | Discovered new exit (range 3) 4185 | -9/Storage | Entered Recycling 4235 | -9/Recycling | Scanned before Scraplab entrance 4243 | -9/Recycling | Discovered new exit (range 2) 4244 | -9/Recycling | Entered Scraptown 4244 | -9/Scraptown | System corruption cleaned by C-Scrubber 4419 | -9/Scraptown | Visited Cyclists 4430 | -9/Scraptown | Visited Awakened 4450 | -9/Scraptown | Heard Great Nut preacher, LISTEN AND RECITE! 4451 | -9/Scraptown | Visited Fellowship of the Rings 4459 | -9/Scraptown | Visited Shadow of the Wyrm 4497 | -9/Scraptown | Visited Symbiants 4514 | -9/Scraptown | Visited Red Mages 4613 | -9/Scraptown | Visited UFD Registry 4613 | -9/Scraptown | Registered with UFD as "Alphakit" 4648 | -9/Scraptown | Visited Junk Repository 4699 | -9/Scraptown | Visited Curators Association 4736 | -9/Scraptown | Visited Botcube Research 4819 | -9/Scraptown | Visited Research Penetration Think Tank 4829 | -9/Scraptown | Visited Science Guys 4919 | -9/Scraptown | Visited Sword Containment 4957 | -9/Scraptown | Visited Junk Cannon Lab 4983 | -9/Scraptown | Visited DA-N13 Charitable Foundation 5002 | -9/Scraptown | Found DCF Scrap (27 items) 5205 | -9/Scraptown | Found Lrg. Botcube 5279 | -9/Scraptown | Attacked by Scraptown defenders 5283 | -9/Scraptown | Found MA-1KR's Cyclogen 5295 | -9/Scraptown | Core integrity fell below 20% 5322 | -9/Scraptown | Destroyed by VP-NTK(j) with Overtuned Pulse Rifle Last Messages --------------- 05279_ ANNOUNCEMENT: Intruder alert! Defend Scraptown! 05283_ Acquired MA-1KR's Cyclogen. 05285_ Autobeam Turret pops up from the ground. 05291_ Com. Wheel destroyed. 05292_ Enclosure breached. 05292_ Machine disabled. 05292_ XQ-97M(j) destroyed. 05292_ Machine disabled. 05295_ Destroyed Gravmag System. 05295_ Enclosure breached. 05301_ Destroyed Autobeam. 05301_ Autobeam Turret destroyed. 05304_ DG-PMF(c) destroyed. 05314_ Cld. Ion Engine destroyed. 05317_ Rocket Launcher destroyed. 05318_ Machine disabled. 05318_ Penetrated by Slug. 05319_ Critical hit (Burn: +50). 05320_ Penetrated by Slug. 05322_ VP-NTK(j): "You're not making it out here alive!" Map ----- +----------------------------------------------------+ | ?????????????????????????????????????????????????? | | ?????????????????????????????????????????????????? | | ?????????????????????????????????????????????????? | | ?????????????????????????????????????????????????? | | ????????????????????????????????????????# ??????? | | ???????????????????????????????????????? ??????? | | ???????????????????????????????????????? ??????? | | ???????????????????????????????????????? ??????? | | ???????????????????????????????????????? ??????? | | ????????????????????????????????????????# #?????? | | ????????????????????###??##?????????????# ####### | | ????????????????????#"###"#?????????????# #"""""" | | ?????????????????#### "!" ####??????????# #""" X | | ?????????????????#" """ "#??????????# #"""" | | ??????????????????#"" ""#???????????# #""!" | | ??????????????????# "$#???????????# #"""" | | ???????############" % "#########"### #"" | | ???????#[!# ![# #" "##"""" ""# # | | ???????#!!# ! # ##" ""###""" ""# # " "" | | ???????# # # ##!" "]#?#"" " # # " "" | | ???????# ##" ""###""" "# #"= | | ???????# # "## "# # | | ???????#### ######## #"####### ##### ## #### | | ??????##### ######### [! ### #### ## ##?? | | ??????#"""" """"""""" % " """"" "" "#?? | | ??????#" =!*@ j "#?? | | ??????#" "#?? | | ??????#" "#? | | ??????#" "## | | ??#####" E | | ??#"""" """"""""""""""""""" """" "## | | ??#"""" """""""""""""""""" "" "#? | | ??#"""" ""###### ######## #"" "#?? | | ??#"""" ""#?? ??????########"" "#?? | | ??#"""" ""#? ???????????#"" "#?? | | #?#"""" ""# "" "" ??????????#"" "#?? | | #"#"""" ""# "" "" X????????###"" "#?? | | ""#"""" ""# " " ######### #"" "## | | #######" "" "" | | #?????#" "" "" "## | | #######" ""# " " ######### #"" "#?? | | ""# "" "" ?????????###"" "#?? | | ""# "" "" ???????????#"" "#?? | | ""#? ????????????#"" "#?? | | ""#?? ?????????????#"" "#?? | | ""###### ################"" "#?? | | """""""""""""""""""""""""""" "## | | """""""""""""""""""""""""""" | | "## | | "#?? | +----------------------------------------------------+ Best States ------------- Heat Dissipation 28 Energy Generation 14 Energy Capacity 280 Matter Stores 300 Matter Capacity 300 Sight Range 22 Terrain Scan Density 85 Armor Coverage 150 Core Shielding 20 Propulsion Shielding 33 Evasion (%) 62 Recoil Reduction 2 Item Schematics ----------------- Imp. Carbon-fiber Leg | -9/Recycling | Hacked Robot Schematics ------------------ None Fabricated ------------ Nothing Alien Tech Used ----------------- None Achievements -------------- None Challenges ------------ None Game ------ Seed StasisLongswordHumpback Manual? 0 Play Time 00:27:29 Cumulative 902.0 hours Start 2024.08.28 @ 12:41:34 End 2024.08.28 @ 13:05:29 Sessions 1 Manual Loads 0 Difficulty Rogue Special Mode None Game No. 1088 Rogue 808 Adventurer 124 Explorer 156 Win Type - Total 39 Types 28/0/8/1/1/0/0/1/0 Lore% 79 Gallery% 89 Achievement% 78 Wizard Run 0 Options --------- Layout 0 ASCII 0 Keyboard 1 Movement Numpad Keybinds 0 Fullscreen 2 Font 18/X11 Map View 76x50 Zoom Use 0% Tactical HUD 1 Map Filters NONE Filters NONE Steam 1 RUN: 479334dc-3a7d-4b26-9291-b9ba07437678